bitfinex/quotes_SOLUSD_20241216
["timestamp","ask_amount","ask_price","bid_price","bid_amount"]
[1734373809431,16.59852807,218.67,218.66,20.0]
[1734373810341,16.59852807,218.68,218.66,20.0]
[1734373812836,16.59852807,218.67,218.66,20.0]
[1734373813031,16.59852807,218.67,218.59,20.0]
[1734373813241,16.59852807,218.63,218.6,3.48154921]
[1734373813442,16.59852807,218.68,218.63,20.0]
[1734373813729,16.59852807,218.68,218.64,3.48154921]
[1734373814325,16.59852807,218.68,218.65,3.48154921]
[1734373814528,16.59852807,218.69,218.62,23.776884]
[1734373814731,16.59852807,218.7,218.69,20.0]
[1734373816257,16.598528,218.76,218.73,20.0]
[1734373816429,6.263,218.83,218.73,20.0]
[1734373816749,16.58927777,218.76,218.73,20.0]
[1734373816957,10.61288794,218.76,218.73,20.0]
[1734373817155,10.61288794,218.75,218.73,20.0]
[1734373817657,10.61288794,218.76,218.73,20.0]
[1734373818027,10.61288794,218.76,218.74,3.49184735]
[1734373818228,10.61321891,218.76,218.73,20.0]
[1734373818437,10.61321891,218.75,218.73,20.0]
[1734373818654,16.58416715,218.75,218.73,20.0]
[1734373819069,16.58416715,218.76,218.73,20.0]
[1734373819234,16.58416715,218.74,218.73,20.0]
[1734373820639,16.58416715,218.75,218.73,20.0]
[1734373821166,16.58416715,218.74,218.73,20.0]
[1734373821331,16.58416715,218.75,218.73,20.0]
[1734373822175,16.58416715,218.77,218.73,20.0]
[1734373823966,16.58416715,218.77,218.74,23.776884]
[1734373824134,16.58416715,218.77,218.76,20.0]
[1734373824454,18.16606715,218.82,218.77,20.0]
[1734373824843,16.58416715,218.81,218.77,20.0]
[1734373825238,16.58416715,218.8,218.77,20.0]
[1734373825560,16.58416715,218.78,218.77,20.0]
[1734373827565,16.58416715,218.8,218.77,20.0]
[1734373827768,16.58416715,218.79,218.77,20.0]
[1734373828848,16.58416715,218.78,218.77,20.0]
[1734373830046,16.58416715,218.78,218.66,13.69]
[1734373830242,16.58416715,218.72,218.67,3.48664045]
[1734373830456,16.58416715,218.72,218.66,13.69]
[1734373830655,16.58416715,218.72,218.67,3.48663671]
[1734373830859,16.58416715,218.72,218.66,13.69]
[1734373831245,16.58416715,218.72,218.67,23.776884]
[1734373831649,16.58416715,218.7,218.66,23.776884]
[1734373831844,16.58416715,218.67,218.6,21.6688]
[1734373832072,16.58416715,218.67,218.61,3.48711607]
[1734373832259,5.0,218.76,218.61,3.48711607]
[1734373832260,16.58416715,218.66,218.61,3.48711607]
[1734373832569,16.58416715,218.67,218.61,3.48711607]
[1734373832780,16.58416715,218.65,218.61,3.48711607]
[1734373832985,16.58416715,218.65,218.6,1.6163]
[1734373833153,16.58416715,218.66,218.6,1.6163]
[1734373833458,16.58416715,218.68,218.6,5.10440897]
[1734373833660,16.58416715,218.66,218.6,1.6163]
[1734373834374,16.58416715,218.65,218.6,1.6163]
[1734373834673,16.58416715,218.67,218.64,20.0]
[1734373835052,16.58416715,218.69,218.68,20.0]
[1734373835381,16.58416715,218.7,218.68,20.0]
[1734373835561,16.58416715,218.71,218.68,20.0]
[1734373837867,16.58416715,218.73,218.71,20.0]
[1734373838071,16.58416715,218.75,218.72,20.0]
[1734373838266,16.58416715,218.76,218.72,20.0]
[1734373838496,16.58416715,218.75,218.72,20.0]
[1734373838786,1.5817,218.78,218.72,20.0]
[1734373838978,16.58416715,218.73,218.72,20.0]
[1734373839975,16.58416715,218.74,218.72,20.0]
[1734373840161,16.58416715,218.75,218.72,20.0]
[1734373841292,16.58416715,218.76,218.72,20.0]
[1734373842200,16.58416715,218.77,218.76,20.0]
[1734373843600,16.58416715,218.78,218.76,20.0]
[1734373843763,16.58416715,218.77,218.76,20.0]
[1734373843963,16.58416715,218.77,218.69,21.5466]
[1734373844164,16.58416715,218.76,218.73,20.0]
[1734373844799,16.58416715,218.77,218.74,23.776884]
[1734373845168,16.58416715,218.77,218.76,20.0]
[1734373845385,1.5361,218.83,218.77,20.0]
[1734373845595,16.58416715,218.8,218.77,20.0]
[1734373846183,16.58416715,218.81,218.77,20.0]
[1734373847886,16.58416715,218.81,218.8,20.0]
[1734373848993,16.58416715,218.82,218.81,20.0]
[1734373851089,1.6607,218.88,218.81,20.0]
[1734373851090,16.58416715,218.84,218.81,20.0]
[1734373851301,16.58416715,218.84,218.82,23.776884]
[1734373851484,1.6607,218.88,218.85,20.0]
[1734373852626,16.58416715,218.86,218.85,20.0]
[1734373853618,16.58416715,218.87,218.85,20.0]
[1734373854022,16.58416715,218.86,218.85,20.0]
[1734373854526,16.58416715,218.86,218.78,23.776884]
[1734373854718,16.58416715,218.79,218.71,1.6515]
[1734373855438,1.5437,218.85,218.71,15.3415]
[1734373855613,1.5437,218.85,218.71,1.6515]
[1734373855614,16.58416715,218.76,218.71,1.6515]
[1734373855801,16.58416715,218.75,218.71,1.6515]
[1734373856305,1.5437,218.85,218.71,1.6515]
[1734373856306,16.58416715,218.76,218.71,1.6515]
[1734373856854,16.58416715,218.74,218.71,1.6515]
[1734373857053,16.58416715,218.74,218.73,23.776884]
[1734373857259,16.58416715,218.75,218.74,43.776884]
[1734373857426,16.58416715,218.88,218.74,43.776884]
[1734373857427,0.9834343,218.89,218.8,20.0]
[1734373857621,16.58416715,218.81,218.8,20.0]
[1734373858455,16.58416715,218.81,218.77,25.0]
[1734373858756,16.58416715,218.78,218.77,25.0]
[1734373859266,16.58416715,218.78,218.77,20.0]
[1734373862824,1.6267,218.86,218.78,24.0165657]
[1734373862825,16.58416715,218.79,218.78,24.0165657]
[1734373863029,16.58416715,218.79,218.78,8.5165657]
[1734373864369,16.58416715,218.79,218.78,3.5165657]
[1734373864575,16.58416715,218.79,218.77,20.0]
[1734373864875,16.58416715,218.78,218.77,20.0]
[1734373865362,16.58416715,218.78,218.75,23.776884]
[1734373865664,16.58416715,218.76,218.75,23.776884]
[1734373866867,16.58416715,218.77,218.76,3.5165657]
[1734373867072,16.58416715,218.77,218.74,8.5165657]
[1734373867361,16.58416715,218.77,218.76,20.0]
[1734373869361,16.58416715,218.78,218.76,3.5165657]
[1734373869535,16.58416715,218.78,218.77,5.0]
[1734373869945,16.57968865,218.78,218.77,5.0]
[1734373870544,10.61127574,218.78,218.77,5.0]
[1734373870753,10.61127574,218.78,218.76,3.5165657]
[1734373871058,10.61127574,218.78,218.77,5.0]
[1734373871836,10.61127574,218.78,218.76,3.5165657]
[1734373872042,10.61127574,218.77,218.75,25.0]
[1734373872360,10.61127574,218.77,218.75,48.776884]
[1734373872537,10.61127574,218.77,218.76,3.5165657]
[1734373872739,10.61127574,218.78,218.76,3.5165657]
[1734373873544,10.61127574,218.77,218.72,5.0]
[1734373873857,10.61127574,218.73,218.7,3.5165657]
[1734373874070,10.61127574,218.71,218.69,5.0]
[1734373874236,10.61127574,218.7,218.67,8.5165657]
[1734373874432,1.5046,218.78,218.72,3.5165657]
[1734373874657,10.61127574,218.74,218.72,8.5165657]
[1734373874856,8.0634,218.86,218.75,8.5165657]
[1734373875058,10.61127574,218.78,218.77,5.0]
[1734373875369,10.61127574,218.78,218.77,25.0]
[1734373875942,10.61241357,218.78,218.77,25.0]
[1734373876641,16.581946,218.78,218.77,25.0]
[1734373876943,16.581946,218.78,218.77,28.5165657]
[1734373877146,16.581946,218.83,218.81,20.0]
[1734373877354,16.581946,218.84,218.82,20.0]
[1734373877556,16.581946,218.83,218.82,25.0]
[1734373878077,16.581946,218.84,218.82,25.0]
[1734373878949,16.581946,218.83,218.82,20.0]
[1734373879155,16.581946,218.83,218.82,25.0]
[1734373879360,16.581946,218.85,218.83,3.5165657]
[1734373879561,16.581946,218.85,218.84,20.0]
[1734373879764,16.581946,218.86,218.85,3.5165657]
[1734373881458,1.6161,218.91,218.85,3.5165657]
[1734373881659,16.581946,218.86,218.83,20.0]
[1734373881865,16.581946,218.84,218.83,20.0]
[1734373882184,1.6161,218.91,218.85,20.0]
[1734373882353,1.6161,218.91,218.83,20.0]
[1734373882884,16.581946,218.84,218.83,20.0]
[1734373883570,16.581946,218.84,218.78,3.5165657]
[1734373883571,16.581946,218.84,218.81,20.0]
[1734373883760,16.581946,218.82,218.81,20.0]
[1734373884065,16.581946,218.82,218.81,43.776884]
[1734373884271,16.581946,218.82,218.81,47.2934497]
[1734373884854,16.581946,218.82,218.81,43.776884]
[1734373885095,16.581946,218.82,218.78,5.0]
[1734373885377,16.581946,218.88,218.78,23.776884]
[1734373885378,16.581946,218.79,218.78,23.776884]
[1734373885756,16.581946,218.79,218.77,23.776884]
[1734373885956,16.581946,218.79,218.75,3.5165657]
[1734373885957,16.581946,218.78,218.75,3.5165657]
[1734373886266,16.581946,218.77,218.76,20.0]
[1734373886654,16.581946,218.77,218.75,3.5165657]
[1734373887075,16.581946,218.76,218.75,23.776884]
[1734373887991,16.581946,218.76,218.71,6.1243]
[1734373887992,16.581946,218.76,218.72,5.0]
[1734373888293,16.581946,218.73,218.69,8.5165657]
[1734373888493,16.581946,218.71,218.69,8.5165657]
[1734373888789,16.581946,218.73,218.72,5.0]
[1734373889198,16.581946,218.73,218.72,28.776884]
[1734373889774,16.581946,218.73,218.72,23.776884]
[1734373890095,16.581946,218.73,218.72,20.0]
[1734373890271,16.581946,218.73,218.72,25.0]
[1734373890472,16.581946,218.73,218.72,20.0]
[1734373891397,16.581946,218.73,218.72,25.0]
[1734373891571,16.581946,218.73,218.67,3.5165657]
[1734373891768,16.581946,218.68,218.66,8.5165657]
[1734373892072,16.581946,218.67,218.64,3.5165657]
[1734373892269,16.581946,218.65,218.64,3.5165657]
[1734373892495,16.581946,218.65,218.64,8.5165657]
[1734373894400,16.581946,218.66,218.64,32.2934497]
[1734373894604,1.5876,218.74,218.64,32.2934497]
[1734373894605,16.581946,218.69,218.68,43.776884]
[1734373900291,16.581946,218.69,218.68,48.776884]
[1734373900679,16.581946,218.69,218.68,43.776884]
[1734373900874,16.581946,218.69,218.68,48.776884]
[1734373902096,16.581946,218.7,218.68,48.776884]
[1734373902402,1.5068,218.8,218.78,20.0]
[1734373902588,6.0244,218.82,218.78,20.0]
[1734373903001,6.0244,218.82,218.73,20.0]
[1734373903207,1.4834343,218.81,218.7,3.5165657]
[1734373903403,1.5068,218.8,218.71,20.0]
[1734373904108,16.581946,218.72,218.69,20.0]
[1734373904306,16.581946,218.7,218.69,20.0]
[1734373907279,16.581946,218.7,218.62,8.5165657]
[1734373907486,16.581946,218.63,218.62,5.0]
[1734373907784,16.581946,218.63,218.6,8.5165657]
[1734373908085,16.581946,218.62,218.6,8.5165657]
[1734373909588,16.581946,218.62,218.61,23.776884]
[1734373911989,18.201046,218.72,218.61,23.776884]
[1734373911990,16.581946,218.63,218.61,23.776884]
[1734373912190,16.581946,218.62,218.56,3.5165657]
[1734373912410,16.581946,218.6,218.56,3.5165657]
[1734373912605,16.581946,218.6,218.56,8.5165657]
[1734373912908,16.581946,218.59,218.56,8.5165657]
[1734373913112,16.581946,218.59,218.54,8.5165657]
[1734373913343,16.581946,218.59,218.52,12.00794184]
[1734373913619,16.581946,218.59,218.52,8.5165657]
[1734373914392,16.581946,218.59,218.52,5.0]
[1734373914594,16.581946,218.59,218.46,3.5165657]
[1734373914595,6.0882,218.57,218.46,3.5165657]
[1734373914811,16.581946,218.49,218.48,3.5165657]
[1734373915019,16.581946,218.51,218.48,3.5165657]
[1734373915499,16.581946,218.49,218.48,3.5165657]
[1734373916295,16.581946,218.5,218.47,20.0]
[1734373916496,16.581946,218.5,218.49,20.0]
[1734373916720,16.581946,218.5,218.49,23.776884]
[1734373917211,16.581946,218.5,218.48,23.776884]
[1734373917417,16.581946,218.5,218.47,20.0]
[1734373917418,16.581946,218.49,218.47,20.0]
[1734373917721,16.581946,218.48,218.47,20.0]
[1734373918032,16.581946,218.49,218.47,20.0]
[1734373918213,16.581946,218.5,218.47,20.0]
[1734373918413,16.581946,218.49,218.47,20.0]
[1734373918620,16.581946,218.51,218.5,43.776884]
[1734373920840,16.581946,218.51,218.5,23.776884]
[1734373921199,6.0882,218.57,218.51,23.776884]
[1734373921447,16.581946,218.52,218.51,23.776884]
[1734373922622,16.581946,218.52,218.49,23.776884]
[1734373922844,16.581946,218.52,218.51,20.0]
[1734373923063,16.581946,218.54,218.52,23.776884]
[1734373923333,16.581946,218.55,218.52,23.776884]
[1734373923549,16.581946,218.55,218.54,23.776884]
[1734373924027,16.581946,218.55,218.53,23.776884]
[1734373924404,16.581946,218.54,218.53,23.776884]
[1734373925320,16.581946,218.55,218.53,23.776884]
[1734373925520,1.6659,218.59,218.52,8.5165657]
[1734373925521,16.581946,218.57,218.55,23.776884]
[1734373925725,16.581946,218.56,218.55,23.776884]
[1734373926230,16.581946,218.56,218.55,28.776884]
[1734373927202,16.581946,218.57,218.56,5.0]
[1734373927408,16.581946,218.57,218.56,28.776884]
[1734373927608,16.581946,218.58,218.57,28.776884]
[1734373928032,16.581946,218.59,218.57,28.776884]
[1734373928236,6.6188,218.67,218.61,23.776884]
[1734373928533,16.581946,218.64,218.63,43.776884]
[1734373928836,16.581946,218.66,218.64,23.776884]
[1734373929015,16.581946,218.66,218.64,32.2934497]
[1734373929415,16.581946,218.68,218.67,20.0]
[1734373929737,16.581946,218.68,218.67,43.776884]
[1734373929930,16.581946,218.68,218.62,5.0]
[1734373930130,16.581946,218.72,218.66,20.0]
[1734373930434,16.581946,218.67,218.62,20.0]
[1734373930733,16.581946,218.63,218.57,5.0]
[1734373930937,16.581946,218.58,218.57,5.0]
[1734373931116,16.581946,218.58,218.56,3.5165657]
[1734373931317,16.581946,218.57,218.56,3.5165657]
[1734373931830,16.581946,218.57,218.56,27.2934497]
[1734373932419,16.581946,218.58,218.57,23.776884]
[1734373932619,16.581946,218.58,218.57,28.776884]
[1734373932827,16.581946,218.58,218.57,23.776884]
[1734373933820,16.581946,218.58,218.57,28.776884]
[1734373934453,16.581946,218.58,218.57,23.776884]
[1734373934659,16.581946,218.58,218.57,28.776884]
[1734373935539,16.581946,218.59,218.57,28.776884]
[1734373936212,16.581946,218.58,218.57,23.776884]
[1734373936435,16.581946,218.58,218.53,5.0]
[1734373936644,16.581946,218.58,218.52,3.5165657]
[1734373936819,16.581946,218.54,218.52,3.5165657]
[1734373937122,16.581946,218.55,218.53,5.0]
[1734373937320,16.581946,218.55,218.52,3.5165657]
[1734373937529,16.581946,218.54,218.52,3.5165657]
[1734373937723,16.581946,218.53,218.51,5.0]
[1734373937927,16.581946,218.52,218.5,3.5165657]
[1734373938141,16.581946,218.51,218.5,3.5165657]
[1734373938652,16.581946,218.52,218.51,5.0]
[1734373938849,16.581946,218.54,218.51,5.0]
[1734373939653,16.581946,218.54,218.52,23.776884]
[1734373940035,16.581946,218.54,218.52,27.2934497]
[1734373940232,16.581946,218.54,218.52,23.776884]
[1734373940950,16.581946,218.53,218.52,23.776884]
[1734373941247,1.6542,218.64,218.54,8.5165657]
[1734373941452,16.581946,218.57,218.55,23.776884]
[1734373941626,16.581946,218.57,218.56,32.2934497]
[1734373941836,16.581946,218.6,218.58,20.0]
[1734373942132,16.581946,218.6,218.59,43.776884]
[1734373942629,16.581946,218.6,218.59,23.776884]
[1734373942831,16.581946,218.6,218.57,23.776884]
[1734373943030,16.581946,218.58,218.57,23.776884]
[1734373943229,16.581946,218.58,218.55,23.776884]
[1734373943555,16.581946,218.56,218.55,23.776884]
[1734373943926,16.581946,218.57,218.55,23.776884]
[1734373944342,16.581946,218.57,218.56,28.776884]
[1734373944547,16.581946,218.58,218.56,5.0]
[1734373944747,16.581946,218.58,218.57,43.776884]
[1734373945134,16.581946,218.58,218.57,43.276884]
[1734373945525,1.91114893,218.69,218.57,43.276884]
[1734373945728,1.6469,218.77,218.71,23.776884]
[1734373945954,16.581946,218.72,218.71,23.776884]
[1734373946129,1.6469,218.77,218.71,23.776884]
[1734373946130,16.581946,218.73,218.71,23.776884]
[1734373946732,16.581946,218.73,218.7,5.0]
[1734373946931,16.581946,218.73,218.69,28.776884]
[1734373947167,16.581946,218.75,218.69,28.776884]
[1734373947348,16.581946,218.75,218.73,23.776884]
[1734373947930,16.581946,218.75,218.71,23.776884]
[1734373948236,16.581946,218.74,218.71,23.776884]
[1734373948635,16.581946,218.74,218.73,23.776884]
[1734373949380,16.581946,218.74,218.71,23.776884]
[1734373949537,16.581946,218.74,218.69,23.776884]
[1734373949739,16.581946,218.74,218.73,23.776884]
[1734373950067,16.581946,218.74,218.69,23.776884]
[1734373950269,16.581946,218.7,218.67,20.0]
[1734373950442,16.581946,218.69,218.67,20.0]
[1734373950656,16.581946,218.68,218.64,8.5165657]
[1734373950854,16.581946,218.67,218.65,20.0]
[1734373951455,16.581946,218.67,218.64,3.5165657]
[1734373951665,16.581946,218.67,218.62,5.0]
[1734373951892,16.581946,218.65,218.61,3.5165657]
[1734373952773,16.581946,218.64,218.61,3.5165657]
[1734373952982,16.581946,218.64,218.62,23.776884]
[1734373953179,16.581946,218.64,218.61,23.776884]
[1734373953382,16.581946,218.65,218.61,23.776884]
[1734373954296,80.8,218.7,218.6,5.0]
[1734373954456,16.581946,218.72,218.6,23.776884]
[1734373954457,16.581946,218.61,218.6,23.776884]
[1734373954654,16.581946,218.61,218.58,25.0]
[1734373954958,16.581946,218.63,218.58,28.5165657]
[1734373955171,16.581946,218.63,218.58,23.5165657]
[1734373955361,16.581946,218.62,218.58,28.5165657]
[1734373955753,16.581946,218.61,218.58,20.0]
[1734373955976,16.581946,218.6,218.56,5.0]
[1734373956191,16.581946,218.57,218.53,3.5165657]
[1734373956471,16.581946,218.6,218.55,5.0]
[1734373956864,16.581946,218.59,218.55,5.0]
[1734373957378,16.581946,218.61,218.55,5.0]
[1734373958058,16.581946,218.61,218.53,3.5165657]
[1734373958261,16.581946,218.6,218.53,3.5165657]
[1734373958458,7.00076701,218.69,218.57,3.5165657]
[1734373958661,16.581946,218.65,218.61,5.0]
[1734373958962,16.581946,218.66,218.62,5.0]
[1734373960580,16.581946,218.65,218.62,5.0]
[1734373960803,16.581946,218.65,218.6,23.5165657]
[1734373961089,16.581946,218.65,218.62,5.0]
[1734373961260,16.581946,218.66,218.62,5.0]
[1734373961960,16.581946,218.65,218.6,23.5165657]
[1734373962166,16.581946,218.65,218.62,5.0]
[1734373962573,16.581946,218.65,218.6,23.5165657]
[1734373962775,16.581946,218.65,218.62,5.0]
[1734373963194,7.7604,218.71,218.63,3.5165657]
[1734373963380,16.581946,218.68,218.63,3.5165657]
[1734373964488,16.581946,218.67,218.63,3.5165657]
[1734373964683,16.581946,218.64,218.62,20.0]
[1734373965095,16.581946,218.64,218.62,25.0]
[1734373965291,1.6345,218.71,218.62,25.0]
[1734373965292,16.581946,218.65,218.62,25.0]
[1734373965809,16.581946,218.64,218.62,20.0]
[1734373966161,82.4345,218.71,218.63,5.0]
[1734373966462,16.581946,218.66,218.63,8.5165657]
[1734373967090,16.581946,218.65,218.63,8.5165657]
[1734373967584,16.581946,218.67,218.65,3.5165657]
[1734373968273,16.581946,218.67,218.65,8.5165657]
[1734373969192,16.581946,218.73,218.7,5.0]
[1734373969363,16.581946,218.74,218.72,20.0]
[1734373969564,16.581946,218.75,218.74,20.0]
[1734373969789,16.581946,218.75,218.72,20.0]
[1734373969988,16.581946,218.74,218.73,20.0]
[1734373970284,16.581946,218.74,218.73,25.0]
[1734373970598,16.581946,218.75,218.73,25.0]
[1734373970890,16.581946,218.75,218.73,28.5165657]
[1734373973391,16.581946,218.76,218.73,28.5165657]
[1734373973597,16.581946,218.75,218.73,28.5165657]
[1734373973976,16.581946,218.74,218.73,28.5165657]
[1734373974290,16.581946,218.75,218.73,28.5165657]
[1734373974491,16.581946,218.74,218.73,28.5165657]
[1734373974874,16.581946,218.74,218.73,25.0]
[1734373975075,16.581946,218.74,218.73,20.0]
[1734373975481,16.581946,218.74,218.71,8.5165657]
[1734373975693,16.581946,218.73,218.71,8.5165657]
[1734373977798,16.581946,218.72,218.71,5.0]
[1734373977998,16.581946,218.72,218.67,8.5165657]
[1734373978199,80.8,218.76,218.65,8.5165657]
[1734373978500,2.6259343,218.8,218.67,5.0]
[1734373978501,16.581946,218.68,218.67,5.0]
[1734373979298,16.581946,218.68,218.67,3.5165657]
[1734373979501,16.581946,218.68,218.65,8.5165657]
[1734373979701,80.8,218.77,218.68,20.0]
[1734373979994,16.581946,218.69,218.63,3.5165657]
[1734373980196,16.581946,218.64,218.63,3.5165657]
[1734373980583,16.581946,218.64,218.61,3.5165657]
[1734373980789,82.4321,218.72,218.62,5.0]
[1734373981306,82.4321,218.72,218.64,5.0]
[1734373981600,82.4321,218.72,218.63,20.0]
[1734373982109,16.581946,218.64,218.63,20.0]
[1734373983381,16.581946,218.64,218.6,5.0]
[1734373983687,16.581946,218.61,218.6,5.0]
[1734373983906,16.581946,218.63,218.61,3.5165657]
[1734373984585,16.581946,218.63,218.62,5.0]
[1734373985199,16.581946,218.63,218.61,3.5165657]
[1734373985405,16.581946,218.62,218.6,5.0]
[1734373985586,16.581946,218.61,218.6,5.0]
[1734373985790,16.581946,218.61,218.57,3.5165657]
[1734373986097,16.581946,218.58,218.57,3.5165657]
[1734373986280,80.8,218.66,218.57,8.5165657]
[1734373986481,1.4834343,218.67,218.57,8.5165657]
[1734373986482,16.581946,218.58,218.57,8.5165657]
[1734373986891,16.581946,218.58,218.57,3.5165657]
[1734373987100,16.581946,218.58,218.57,23.5165657]
[1734373987813,16.581946,218.58,218.51,5.0]
[1734373987995,16.581946,218.52,218.51,5.0]
[1734373988411,16.581946,218.52,218.49,5.0]
[1734373988607,80.8,218.6,218.49,5.0]
[1734373988608,80.8,218.59,218.49,5.0]
[1734373988784,1.4834343,218.6,218.51,5.0]
[1734373988785,16.581946,218.53,218.51,5.0]
[1734373988987,16.581946,218.55,218.53,5.0]
[1734373989198,16.581946,218.54,218.53,5.0]
[1734373989405,16.581946,218.54,218.5,5.0]
[1734373989582,1.4834343,218.6,218.5,5.0]
[1734373989583,16.581946,218.51,218.5,5.0]
[1734373990408,16.581946,218.51,218.46,3.5165657]
[1734373990585,16.581946,218.56,218.45,5.0]
[1734373990586,16.581946,218.47,218.45,5.0]
[1734373990783,16.581946,218.46,218.43,5.0]
[1734373991001,16.581946,218.44,218.43,5.0]
[1734373991309,16.581946,218.45,218.44,3.5165657]
[1734373991805,16.581946,218.45,218.43,5.0]
[1734373992104,16.581946,218.44,218.43,5.0]
[1734373993586,16.581946,218.45,218.43,5.0]
[1734373993790,16.581946,218.48,218.46,8.5165657]
[1734373994701,16.581946,218.47,218.46,5.0]
[1734373994896,16.581946,218.47,218.46,8.5165657]
[1734373995102,16.581946,218.47,218.46,5.0]
[1734373995307,16.581946,218.47,218.44,8.5165657]
[1734373995482,1.5517,218.53,218.44,8.5165657]
[1734373995483,16.581946,218.45,218.44,5.0]
[1734373996917,16.581946,218.45,218.44,20.0]
[1734373997111,16.581946,218.45,218.41,0.19094693]
[1734373997411,16.581946,218.42,218.41,0.19094693]
[1734373997614,33.163892,218.42,218.36,5.5434865]
[1734373997916,16.581946,218.37,218.36,0.5434865]
[1734373998088,16.581946,218.37,218.36,0.0434865]
[1734373998593,80.8,218.41,218.36,0.0434865]
[1734373998785,16.581946,218.37,218.36,0.0434865]
[1734373999927,16.581946,218.4,218.37,8.5165657]
[1734374000140,16.581946,218.4,218.39,5.0]
[1734374000889,16.581946,218.4,218.37,8.5165657]
[1734374001119,16.581946,218.38,218.37,5.0]
[1734374001432,16.581946,218.39,218.37,8.5165657]
[1734374001594,2.73790887,218.46,218.24,10.68698005]
[1734374001595,87.2126,218.36,218.25,5.0]
[1734374001794,87.2126,218.36,218.29,5.0]
[1734374002018,16.581946,218.3,218.26,3.5165657]
[1734374002313,16.581946,218.27,218.26,3.5165657]
[1734374003118,16.581946,218.28,218.26,3.5165657]
[1734374003335,87.2126,218.36,218.31,5.0]
[1734374003551,80.8,218.35,218.27,25.0]
[1734374003836,80.8,218.35,218.31,5.0]
[1734374004496,16.581946,218.32,218.31,5.0]
[1734374005035,16.581946,218.32,218.28,25.0]
[1734374005334,16.581946,218.29,218.28,20.0]
[1734374005715,16.581946,218.29,218.27,25.0]
[1734374005913,80.8,218.34,218.26,5.0]
[1734374005914,16.581946,218.28,218.26,5.0]
[1734374006099,16.581946,218.27,218.26,5.0]
[1734374006818,16.581946,218.28,218.26,5.0]
[1734374007023,16.581946,218.27,218.26,5.0]
[1734374007235,16.581946,218.28,218.26,5.0]
[1734374007435,16.581946,218.28,218.27,3.5165657]
[1734374009917,16.581946,218.28,218.27,8.5165657]
[1734374010120,16.581946,218.28,218.27,5.0]
[1734374010624,16.581946,218.28,218.27,8.5165657]
[1734374010823,16.581946,218.29,218.27,8.5165657]
[1734374011220,16.581946,218.28,218.27,8.5165657]
[1734374012619,16.581946,218.3,218.29,28.5165657]
[1734374013803,16.581946,218.3,218.25,5.0]
[1734374014007,16.581946,218.26,218.25,5.0]
[1734374014525,16.581946,218.26,218.25,8.5165657]
[1734374015500,16.581946,218.27,218.25,9.6619657]
[1734374015900,16.581946,218.26,218.25,9.6619657]
[1734374016511,16.581946,218.26,218.25,8.5165657]
[1734374016914,16.581946,218.26,218.25,5.0]
[1734374017116,16.581946,218.26,218.22,7.5]
[1734374017313,16.581946,218.23,218.22,7.5]
[1734374018708,16.581946,218.25,218.24,5.0]
[1734374018915,16.581946,218.25,218.24,28.5165657]
[1734374019114,16.581946,218.26,218.25,43.776884]
[1734374019318,16.581946,218.26,218.25,20.0]
[1734374021543,16.581946,218.26,218.22,11.0165657]
[1734374021727,80.8,218.32,218.25,5.0]
[1734374022230,16.581946,218.26,218.25,5.0]
[1734374023442,16.581946,218.27,218.25,5.0]
[1734374023650,16.581946,218.28,218.27,25.0]
[1734374025454,16.581946,218.28,218.27,5.0]
[1734374027662,16.581946,218.28,218.26,3.5165657]
[1734374027860,16.581946,218.27,218.22,2.5]
[1734374028066,16.581946,218.23,218.22,2.5]
[1734374028225,16.581946,218.23,218.22,7.5]